bitfinex/quotes_SOLUSD_20240905
["timestamp","ask_amount","ask_price","bid_price","bid_amount"]
[1725544231128,8.75968001,133.99,133.92,7.467]
[1725544231319,7.464,133.98,133.92,7.467]
[1725544231643,1.29648001,133.99,133.91,26.1359]
[1725544231644,7.74621673,133.99,133.91,26.1359]
[1725544231934,7.4652,133.96,133.89,7.4687]
[1725544232163,57.74621673,133.99,133.83,34.2344]
[1725544232325,18.6626,133.96,133.83,34.2344]
[1725544232638,7.4682,133.91,133.84,7.4713]
[1725544232821,7.4684,133.9,133.83,18.6795]
[1725544233023,18.6667,133.93,133.8,7.4734]
[1725544233226,20.0,133.89,133.79,18.6852]
[1725544233528,20.0,133.89,133.78,15.6303]
[1725544233529,20.0,133.92,133.78,15.6303]
[1725544233848,7.4725,133.83,133.78,15.6303]
[1725544234035,95.0,133.91,133.77,6.2454]
[1725544234036,7.473,133.82,133.77,6.2454]
[1725544234218,7.473,133.82,133.76,7.476]
[1725544234746,18.675,133.87,133.75,18.6903]
[1725544234943,65.0,133.86,133.75,26.1667]
[1725544235125,7.4727,133.82,133.75,26.1667]
[1725544235449,7.4737,133.81,133.74,7.4771]
[1725544235630,27.4738,133.8,133.74,7.4771]
[1725544235834,20.0,133.8,133.72,30.3736843]
[1725544236141,20.0,133.83,133.72,0.8714843]
[1725544236334,65.0,133.83,133.73,1.49493378]
[1725544236644,65.0,133.83,133.72,19.5671843]
[1725544236969,7.4772,133.74,133.72,0.8714843]
[1725544237242,7.4766,133.75,133.72,0.8714843]
[1725544237824,18.6859,133.8,133.72,0.8714843]
[1725544238050,65.0,133.79,133.72,0.8714843]
[1725544238223,7.4777,133.73,133.72,0.8714843]
[1725544238420,20.0,133.73,133.72,0.8714843]
[1725544238644,45.0,133.79,133.72,0.8714843]
[1725544238832,7.4771,133.75,133.72,0.8714843]
[1725544239036,20.0,133.74,133.72,0.8714843]
[1725544239367,7.4761,133.76,133.72,0.8714843]
[1725544239521,27.4767,133.75,133.72,0.8714843]
[1725544239923,25.3089,133.81,133.72,0.8714843]
[1725544239924,7.4753,133.78,133.72,0.8714843]
[1725544240233,7.4749,133.78,133.72,0.8714843]
[1725544240545,7.4748,133.79,133.73,7.4777]
[1725544240923,7.4762,133.76,133.72,0.8714843]
[1725544241317,7.4755,133.77,133.72,0.8714843]
[1725544241518,7.4761,133.76,133.72,0.8714843]
[1725544241720,7.475,133.78,133.72,0.8714843]
[1725544242028,7.476,133.76,133.72,0.8714843]
[1725544242425,20.0,133.77,133.72,0.8714843]
[1725544242651,7.4777,133.73,133.72,0.8714843]
[1725544243351,27.75701711,133.77,133.72,0.8714843]
[1725544243646,7.4777,133.73,133.72,0.8714843]
[1725544243850,27.4777,133.73,133.72,0.8714843]
[1725544244431,72.4777,133.73,133.72,8.43e-05]
[1725544244640,27.4777,133.73,133.72,8.43e-05]
[1725544245057,72.4777,133.73,133.72,8.43e-05]
[1725544245260,27.4777,133.73,133.72,8.43e-05]
[1725544245758,72.4777,133.73,133.72,8.43e-05]
[1725544245964,27.4777,133.73,133.72,8.43e-05]
[1725544246670,7.4777,133.73,133.72,8.43e-05]
[1725544248062,52.4777,133.73,133.72,8.43e-05]
[1725544248467,72.4777,133.73,133.72,8.43e-05]
[1725544249464,7.75701711,133.77,133.72,8.43e-05]
[1725544249670,7.4777,133.73,133.72,8.43e-05]
[1725544249847,7.4772,133.74,133.72,8.43e-05]
[1725544250173,7.4777,133.73,133.72,8.43e-05]
[1725544251945,52.4777,133.73,133.72,8.43e-05]
[1725544252164,72.4777,133.73,133.72,8.43e-05]
[1725544252856,27.4777,133.73,133.72,8.43e-05]
[1725544253960,7.75644284,133.75,133.72,8.43e-05]
[1725544254270,7.4749,133.78,133.73,7.4776]
[1725544254462,7.75003897,133.79,133.72,1.495276]
[1725544254670,7.4759,133.77,133.72,8.973576]
[1725544255053,7.4767,133.75,133.72,8.43e-05]
[1725544255263,7.75003897,133.79,133.73,22.4437]
[1725544255582,7.4738,133.8,133.74,7.477]
[1725544255739,7.74983807,133.83,133.74,7.477]
[1725544255943,7.4728,133.82,133.77,7.4753]
[1725544256143,7.74983807,133.83,133.78,1.49455887]
[1725544256363,7.74983807,133.83,133.76,26.1647]
[1725544256543,15.22243807,133.83,133.77,8.96995897]
[1725544256751,7.4729,133.82,133.77,7.4753]
[1725544257069,7.4729,133.82,133.78,1.49464906]
[1725544257268,15.22203807,133.83,133.78,1.49464906]
[1725544257450,15.22203807,133.83,133.77,7.4753]
[1725544257773,7.4748,133.79,133.74,7.477]
[1725544258164,7.4748,133.79,133.73,48.6152]
[1725544258359,7.475,133.78,133.73,48.6152]
[1725544258558,7.74983807,133.83,133.74,1.49500555]
[1725544258779,65.0,133.82,133.7,18.6982]
[1725544258975,18.6855,133.8,133.7,18.6982]
[1725544259151,20.0,133.79,133.71,1.49512966]
[1725544259470,7.4766,133.75,133.68,67.23154812]
[1725544259677,20.0,133.79,133.68,22.8443]
[1725544259992,7.477,133.75,133.68,22.8443]
[1725544260282,7.4772,133.74,133.68,22.8443]
[1725544260472,7.4777,133.73,133.68,22.8443]
[1725544260677,7.4777,133.73,133.69,1.49555691]
[1725544260979,7.4777,133.73,133.68,22.8443]
[1725544261182,18.6882,133.78,133.68,22.8443]
[1725544261183,7.4772,133.74,133.68,22.8443]
[1725544261484,7.4773,133.74,133.68,49.025]
[1725544261776,7.4777,133.73,133.64,44.38724812]
[1725544261987,27.4777,133.73,133.63,30.067]
[1725544262156,27.4777,133.73,133.63,22.5838]
[1725544262361,27.4777,133.73,133.59,0.8714843]
[1725544262362,7.4846,133.61,133.59,0.8714843]
[1725544262688,7.4833,133.63,133.59,0.8714843]
[1725544262982,18.7042,133.66,133.59,0.8714843]
[1725544263161,20.0,133.65,133.6,1.496432]
[1725544263493,7.4838,133.63,133.59,0.8714843]
[1725544263786,18.7003,133.69,133.6,1.49660592]
[1725544263966,37.3879,133.74,133.61,44.83170549]
[1725544264177,37.3879,133.74,133.62,7.4836]
[1725544264178,7.4811,133.67,133.62,7.4836]
[1725544264357,18.6961,133.72,133.62,7.4836]
[1725544264358,7.4805,133.68,133.62,7.4836]
[1725544264558,7.48,133.69,133.63,8.97923239]
[1725544264757,7.48,133.69,133.63,7.4832]
[1725544265072,18.6995,133.7,133.63,1.49602155]
[1725544265272,18.6995,133.7,133.6,1.49629358]
[1725544265577,18.6995,133.7,133.61,1.49627967]
[1725544265787,18.6995,133.7,133.59,19.5850843]
[1725544265958,7.4814,133.67,133.61,18.7101]
[1725544266160,7.4814,133.67,133.61,26.1945]
[1725544266373,27.74882606,133.69,133.61,18.7101]
[1725544266573,27.74882606,133.69,133.61,26.1944]
[1725544266968,7.74882606,133.69,133.65,7.4821]
[1725544267202,18.6934,133.74,133.63,63.53900549]
[1725544267504,7.4806,133.68,133.64,1.49597241]
[1725544267682,7.4806,133.68,133.65,1.49600946]
[1725544267877,7.48,133.69,133.65,1.49600946]
[1725544268205,7.48,133.69,133.64,7.4826]
[1725544268501,18.6934,133.74,133.65,1.49594293]
[1725544268685,7.4794,133.71,133.66,7.4814]
[1725544268886,18.6934,133.74,133.63,18.7073]
[1725544269092,7.4811,133.67,133.63,18.7073]
[1725544269393,7.4839,133.62,133.59,0.8714843]
[1725544269783,18.7023,133.68,133.59,2.3682067]
[1725544269978,7.4843,133.62,133.59,0.8714843]
[1725544270189,45.0,133.67,133.59,0.8714843]
[1725544270389,20.0,133.66,133.59,0.8714843]
[1725544270601,7.4839,133.62,133.6,1.49670394]
[1725544270779,7.4834,133.63,133.6,1.49670394]
[1725544270983,7.4839,133.62,133.59,0.8714843]
[1725544271322,7.485,133.6,133.59,0.8714843]
[1725544271607,27.485,133.6,133.59,0.8714843]
[1725544271800,7.485,133.6,133.59,0.8714843]
[1725544272212,45.0,133.67,133.59,0.8714843]
[1725544272385,7.485,133.6,133.59,0.8714843]
[1725544272584,72.485,133.6,133.59,0.8714843]
[1725544272780,122.485,133.6,133.59,8.43e-05]
[1725544273001,7.4873,133.56,133.5,7.4904]
[1725544273211,20.0,133.6,133.51,1.49757908]
[1725544273389,20.0,133.6,133.52,1.49708159]
[1725544273588,27.485,133.6,133.53,18.7223]
[1725544273908,20.0,133.6,133.5,26.2171]
[1725544274110,27.4844,133.61,133.51,46.32898073]
[1725544274404,7.4845,133.61,133.55,26.207]
[1725544274602,7.4839,133.62,133.55,26.207]
[1725544274807,7.4833,133.63,133.56,8.98418626]
[1725544275032,7.4827,133.65,133.59,7.4854]
[1725544275306,7.4835,133.63,133.58,18.7152]
[1725544275506,7.4835,133.63,133.58,20.21222436]
[1725544275716,7.4835,133.63,133.58,18.7152]
[1725544275717,7.4833,133.63,133.58,18.7152]
[1725544275900,7.4839,133.62,133.58,18.7152]
[1725544276098,7.4845,133.61,133.54,26.2074]
[1725544276411,7.4875,133.56,133.51,18.725]
[1725544276618,18.7098,133.62,133.51,26.2149]
[1725544276619,7.4867,133.57,133.51,26.2149]
[1725544276808,7.4861,133.58,133.52,8.98693423]
[1725544276991,20.0,133.57,133.51,18.725]
[1725544277189,21.29997763,133.57,133.51,27.7125664]
[1725544277599,27.74708869,133.56,133.52,1.49763106]
[1725544277806,7.74708869,133.56,133.51,26.2149]
[1725544277999,7.74708869,133.56,133.52,1.49763504]
[1725544278191,7.74708869,133.56,133.53,1.49752028]
[1725544278498,20.0,133.61,133.48,40.9099]
[1725544278499,18.7147,133.59,133.48,40.9099]
[1725544278693,15.23549413,133.56,133.49,1.49779175]
[1725544279011,27.4848,133.61,133.55,7.4877]
[1725544279192,7.4857,133.59,133.53,26.2107]
[1725544279386,7.4867,133.57,133.53,18.7223]
[1725544279724,7.74647954,133.6,133.53,26.2111]
[1725544279888,65.0,133.59,133.49,18.7268]
[1725544280092,65.0,133.59,133.5,1.49769385]
[1725544280391,72.4861,133.59,133.53,7.4889]
[1725544280711,7.4861,133.58,133.54,1.49749173]
[1725544280910,20.0,133.59,133.55,7.4877]
[1725544281112,20.0,133.59,133.54,20.21839173]
[1725544281113,20.0,133.59,133.54,26.2091]
[1725544281316,20.0,133.59,133.51,26.2144]
[1725544281607,7.4873,133.56,133.51,26.2148]
[1725544281811,20.0,133.59,133.52,1.4976371]
[1725544282014,7.74647954,133.6,133.53,1.49747443]
[1725544282217,18.703,133.67,133.57,18.7157]
[1725544282519,7.74969933,133.64,133.53,44.83170549]
[1725544282718,7.74969933,133.64,133.5,37.4521]
[1725544282719,24.9259,133.68,133.55,44.83170549]
[1725544283019,7.74790965,133.66,133.59,26.1993]
[1725544283223,7.74790965,133.66,133.58,7.486]
[1725544283424,7.74790965,133.66,133.6,7.4849]
[1725544283608,7.74790965,133.66,133.61,1.49663119]
[1725544283806,7.74790965,133.66,133.55,44.83170549]
[1725544283807,7.74790965,133.66,133.55,18.7193]
[1725544284014,7.4832,133.64,133.58,7.4861]
[1725544284398,7.74790965,133.66,133.55,18.7193]
[1725544284596,7.4839,133.62,133.56,7.4867]
[1725544284820,7.4839,133.62,133.57,7.4865]
[1725544285205,20.0,133.61,133.56,7.4867]
[1725544285401,20.0,133.61,133.57,18.7154]
[1725544285626,7.74790965,133.66,133.57,18.7154]
[1725544285627,15.23000965,133.66,133.6,7.4849]
[1725544285830,7.74790965,133.66,133.57,18.7154]
[1725544286122,7.74790965,133.66,133.59,7.4853]
[1725544286926,7.74790965,133.66,133.57,18.7154]
[1725544287227,7.74790965,133.66,133.58,7.51135248]
[1725544287527,20.0,133.69,133.6,7.4844]
[1725544287528,1.29885195,133.69,133.6,7.4844]
[1725544287708,1.29885195,133.69,133.58,6.0145]
[1725544287709,7.74662344,133.66,133.58,24.7294]
[1725544287910,108.70005195,133.69,133.54,6.4008]
[1725544288221,7.4839,133.62,133.57,7.4866]
[1725544288430,7.4834,133.63,133.58,7.4861]
[1725544288732,20.0,133.62,133.57,7.4862]
[1725544288926,20.0,133.63,133.58,1.49687902]
[1725544289102,20.0,133.63,133.61,7.4842]
[1725544289298,7.4821,133.66,133.61,7.4842]
[1725544289518,7.4821,133.66,133.62,1.49652893]
[1725544289716,7.4822,133.65,133.6,7.4849]
[1725544289915,7.74575152,133.67,133.59,18.7129]
[1725544289916,7.4828,133.64,133.59,26.1983]
[1725544290118,7.4828,133.64,133.54,43.842]
[1725544290119,26.44935152,133.67,133.56,18.7178]
[1725544290408,7.484,133.62,133.57,7.4866]
[1725544290915,7.4846,133.61,133.56,26.2049]
[1725544291115,7.4839,133.62,133.57,8.9836934]
[1725544291314,7.4862,133.58,133.54,6.4008]
[1725544291529,7.4857,133.59,133.53,18.7216]
[1725544291731,18.7092,133.63,133.53,26.2105]
[1725544292030,7.4861,133.58,133.54,7.4882]
[1725544292541,7.4862,133.58,133.53,26.2101]
[1725544293453,7.4868,133.57,133.53,1.49742807]
[1725544293625,7.4861,133.59,133.53,1.49742807]
[1725544293827,20.0,133.58,133.54,7.4883]
[1725544294138,18.7072,133.64,133.55,1.49728317]
[1725544294339,7.484,133.62,133.57,7.4866]
[1725544294642,7.484,133.62,133.56,18.7175]
[1725544294643,27.4846,133.61,133.56,26.2047]
[1725544294818,32.54495152,133.67,133.58,18.7145]
[1725544295013,7.4823,133.65,133.61,7.4843]
[1725544295326,15.22735152,133.67,133.62,8.98036501]
[1725544295528,7.4817,133.66,133.61,7.4843]
[1725544295719,7.74575152,133.67,133.61,7.4843]
[1725544296617,7.74575152,133.67,133.62,18.7086]
[1725544296843,15.22695152,133.67,133.62,26.192]
[1725544297137,7.74575152,133.67,133.63,7.4828]
[1725544297346,7.74575152,133.67,133.62,18.7086]
[1725544297347,15.22735152,133.67,133.62,18.7086]
[1725544297852,7.74575152,133.67,133.63,1.49642815]
[1725544298037,15.22695152,133.67,133.62,18.7086]
[1725544298359,7.74575152,133.67,133.66,7.4816]
[1725544298529,7.74575152,133.67,133.62,7.4835]
[1725544298724,7.4817,133.66,133.61,7.4844]
[1725544298947,15.22695152,133.67,133.62,7.4838]
[1725544299455,7.74575152,133.67,133.63,1.49634109]
[1725544299744,7.74575152,133.67,133.64,1.49626835]
[1725544299927,7.74575152,133.67,133.66,7.4816]
[1725544300452,7.4795,133.7,133.66,7.4816]
[1725544300754,7.4798,133.7,133.64,26.1887]
[1725544300924,7.4799,133.69,133.64,26.1887]
[1725544301126,7.4806,133.68,133.64,26.1887]
[1725544301321,7.745751,133.72,133.61,18.7106]
[1725544301526,18.6986,133.7,133.61,18.7106]
[1725544301825,45.0,133.71,133.59,7.4855]
[1725544301826,7.4834,133.63,133.59,7.4855]
[1725544302024,45.0,133.71,133.58,18.7153]
[1725544302223,18.7004,133.69,133.58,18.7153]
[1725544302428,7.4833,133.63,133.58,18.7153]
[1725544302627,7.4827,133.65,133.58,18.7153]
[1725544302838,7.4827,133.65,133.6,7.4845]
[1725544303032,18.7004,133.69,133.6,7.4845]
[1725544303033,18.7004,133.69,133.61,7.4843]
[1725544303235,20.0,133.68,133.62,8.98030559]
[1725544303446,7.745751,133.72,133.62,1.49650559]
[1725544303647,7.745751,133.72,133.64,18.7056]
[1725544303944,7.4802,133.69,133.64,26.1879]
[1725544304553,7.4788,133.71,133.65,1.49609191]
[1725544304964,7.4788,133.71,133.66,7.4815]
[1725544305336,7.4799,133.7,133.65,7.4821]
[1725544306061,7.745751,133.72,133.66,20.19926789]
[1725544306240,7.4784,133.72,133.67,7.4806]
[1725544306562,7.4789,133.71,133.66,26.1849]
[1725544306736,7.4795,133.7,133.66,18.7033]
[1725544306940,7.4816,133.66,133.63,6.4635]
[1725544307254,7.4806,133.68,133.59,51.01290549]
[1725544307429,7.4806,133.68,133.63,7.4828]
[1725544307639,34.18709431,133.73,133.63,7.4832]
[1725544307864,45.0,133.72,133.62,18.7084]
[1725544308163,20.0,133.71,133.62,18.7084]
[1725544308331,45.0,133.7,133.61,7.4844]
[1725544308667,45.0,133.7,133.59,32.3797]
[1725544308668,7.4831,133.64,133.59,32.3797]
[1725544308958,7.4831,133.64,133.59,32.3801]
[1725544309259,7.4831,133.64,133.6,7.4849]
[1725544309648,7.4831,133.64,133.59,24.8947]
[1725544309649,18.7016,133.68,133.61,7.4842]
[1725544309837,20.0,133.69,133.63,18.7073]
[1725544309838,20.0,133.67,133.63,18.7073]
[1725544310044,20.0,133.69,133.64,1.49623872]
[1725544310239,20.0,133.69,133.65,1.49607984]
[1725544310533,7.48,133.69,133.65,1.49607984]
[1725544310868,7.4817,133.66,133.6,18.7119]
[1725544311167,7.4827,133.65,133.6,26.1965]
[1725544311335,7.4827,133.65,133.59,6.1812]
[1725544311336,7.4805,133.68,133.63,7.4831]
[1725544312158,7.4805,133.68,133.64,1.49624188]
[1725544312661,7.4823,133.65,133.6,7.4848]
[1725544312865,7.4815,133.67,133.61,18.7104]
[1725544313541,7.4817,133.66,133.62,7.4838]
[1725544313743,7.74778625,133.71,133.63,1.49632498]
[1725544313937,7.74778625,133.71,133.63,20.20402498]
[1725544314137,7.74778625,133.71,133.63,1.49632498]
[1725544314344,15.22708625,133.71,133.66,7.4811]
[1725544314565,7.745847,133.73,133.66,7.4811]
[1725544314766,7.4805,133.68,133.62,18.7092]
[1725544314978,7.4806,133.68,133.63,7.4829]
[1725544315149,7.4811,133.67,133.62,18.7092]
[1725544315359,7.4828,133.64,133.59,32.3798]
[1725544315550,7.4823,133.65,133.6,7.4846]
[1725544315979,7.4828,133.64,133.6,7.4846]
[1725544316352,7.4823,133.65,133.6,7.4846]
[1725544316658,18.7034,133.67,133.56,35.0688]
[1725544316863,65.0,133.66,133.56,35.0688]
[1725544317052,65.0,133.66,133.57,8.9831847]
[1725544317053,7.484,133.62,133.57,8.9831847]
[1725544317248,7.484,133.62,133.58,1.49684255]
[1725544317864,7.484,133.62,133.57,7.4862]
[1725544317865,7.4846,133.61,133.57,7.4862]
[1725544318266,18.7061,133.65,133.56,35.0688]
[1725544318267,7.4839,133.62,133.58,8.98286216]
[1725544318664,7.4834,133.63,133.58,7.486]
[1725544319157,7.4823,133.65,133.6,7.4849]
[1725544319366,18.7048,133.66,133.56,16.3512]
[1725544319677,37.4026,133.69,133.52,16.1375]
[1725544319678,45.0,133.65,133.52,16.1375]
[1725544319871,7.4866,133.58,133.53,7.4884]
[1725544320049,7.4866,133.58,133.52,34.8603]
[1725544320050,7.4856,133.59,133.54,7.4882]
[1725544320251,7.4862,133.58,133.52,34.8603]
[1725544320454,7.4862,133.58,133.53,7.4883]
[1725544320659,7.4862,133.58,133.52,34.8603]
[1725544320660,18.7107,133.62,133.52,34.8603]
[1725544320858,65.0,133.61,133.52,34.8603]
[1725544321282,65.0,133.61,133.53,1.49750112]
[1725544321566,20.0,133.61,133.52,34.8603]
[1725544321777,20.0,133.61,133.52,60.96920549]
[1725544322076,16.4929,133.69,133.55,44.83170549]
[1725544322373,50.0,133.66,133.52,23.6268]
[1725544322574,7.4873,133.56,133.51,30.64997092]
[1725544322755,7.4873,133.56,133.51,21.26830575]
[1725544323079,7.4873,133.56,133.51,26.2146]
[1725544323255,18.7147,133.59,133.5,6.4718]
[1725544323462,7.4893,133.53,133.48,41.4105]
[1725544323653,7.4884,133.54,133.49,7.4911]
[1725544323958,7.4878,133.55,133.51,7.49]
[1725544324277,7.4878,133.55,133.5,7.4905]
[1725544324774,6.4725,133.63,133.51,1.49764059]
[1725544324775,18.7101,133.62,133.51,1.49764059]
[1725544324976,20.00547,133.66,133.55,7.4873]
[1725544325282,7.4862,133.58,133.48,60.02220549]
[1725544325466,7.74508015,133.64,133.51,26.2141]
[1725544325776,7.4868,133.57,133.52,7.4894]
[1725544325956,7.4861,133.58,133.53,7.4888]
[1725544326370,18.7091,133.63,133.53,7.4889]
[1725544326371,20.0,133.57,133.53,7.4889]
[1725544326567,20.0,133.58,133.54,1.49760272]
[1725544326752,20.0,133.63,133.57,7.4867]
[1725544327077,7.74508015,133.64,133.58,18.7143]
[1725544327376,7.74508015,133.64,133.63,7.4833]
[1725544327583,20.00547,133.66,133.64,18.7059]
[1725544327884,6.2502,133.76,133.63,6.1441]
[1725544328182,7.74277223,133.69,133.65,18.7055]
[1725544328360,26.25567,133.76,133.65,18.7055]
[1725544328557,7.74469044,133.69,133.65,26.1872]
[1725544328965,7.4794,133.7,133.65,26.1872]
[1725544329167,7.4807,133.68,133.62,7.4838]
[1725544329753,7.74466066,133.69,133.62,7.4839]
[1725544329953,7.4806,133.68,133.63,7.4833]
[1725544330150,20.0,133.67,133.61,18.7097]
[1725544330381,20.0,133.68,133.61,18.7097]
[1725544330554,51.394,133.67,133.58,26.2007]
[1725544330749,51.394,133.67,133.53,6.118]
[1725544330750,20.0,133.66,133.55,18.7195]
[1725544330997,45.0,133.65,133.55,26.2071]
[1725544331178,20.0,133.64,133.55,18.7195]
[1725544331384,45.0,133.63,133.53,6.118]
[1725544331676,7.4856,133.59,133.53,13.6064]
[1725544331986,7.485,133.6,133.55,7.4878]
[1725544332160,20.0,133.59,133.55,7.4878]
[1725544332358,45.0,133.63,133.53,6.118]
[1725544332682,27.4839,133.62,133.57,7.4866]
[1725544332887,20.0,133.62,133.56,18.717]
[1725544333179,7.4828,133.64,133.59,26.1994]
[1725544333386,6.394,133.67,133.59,18.7139]
[1725544333687,7.4822,133.65,133.6,8.98120648]
[1725544333991,7.4822,133.65,133.6,7.485]
[1725544334154,7.4817,133.66,133.62,7.4838]
[1725544334357,7.481,133.68,133.63,1.49638993]
[1725544334570,7.4832,133.64,133.59,7.4851]
[1725544334884,7.4832,133.64,133.53,6.118]
[1725544334885,7.481,133.68,133.62,7.4837]
[1725544335090,7.4835,133.63,133.58,7.4861]
[1725544335269,7.4827,133.65,133.57,18.7167]
[1725544335467,7.4829,133.64,133.57,18.7167]
[1725544335683,7.481,133.68,133.63,7.4832]
[1725544335991,7.4828,133.64,133.59,7.4851]
[1725544336164,18.7014,133.68,133.58,18.7149]
[1725544336364,7.4824,133.65,133.6,7.485]
[1725544336563,7.74466066,133.69,133.6,18.7116]
[1725544336764,7.74466066,133.69,133.61,1.49641767]
[1725544336969,7.74466066,133.69,133.62,1.4963725]
[1725544337177,7.74466066,133.69,133.67,7.4806]
[1725544337386,7.4789,133.71,133.67,7.4806]
[1725544337563,15.2241287,133.72,133.67,7.4806]
[1725544337762,15.2241287,133.72,133.66,18.7029]
[1725544337763,7.7458287,133.72,133.68,8.97626681]
[1725544337971,15.2246287,133.72,133.67,7.481]
[1725544338164,7.4789,133.71,133.66,26.1844]
[1725544338389,7.4794,133.7,133.66,18.7029]
[1725544338892,7.7458287,133.72,133.65,44.83170549]
[1725544339203,1.29872765,133.77,133.7,18.6978]
[1725544339204,7.4755,133.77,133.7,18.6978]
[1725544339399,7.4761,133.76,133.71,7.4787]
[1725544340187,7.7446398,133.8,133.73,7.4772]
[1725544340487,7.7446398,133.8,133.75,7.4761]
[1725544340685,7.4744,133.79,133.74,26.1692]
[1725544340897,7.4738,133.8,133.75,7.4765]
[1725544341100,7.74119834,133.81,133.76,18.6892]
[1725544341268,7.74119834,133.81,133.71,44.83170549]
[1725544341269,7.4709,133.86,133.8,7.4738]
[1725544341601,7.4711,133.85,133.81,1.49435229]
[1725544341887,7.4705,133.86,133.81,1.49435229]
[1725544342086,7.4705,133.86,133.78,18.6862]
[1725544342294,15.20562252,133.88,133.82,7.4721]
[1725544342500,15.20562252,133.88,133.76,16.4688]
[1725544342501,7.73572252,133.88,133.79,6.6007]
[1725544342992,7.73572252,133.88,133.81,7.4732]
[1725544343202,7.73572252,133.88,133.8,18.6833]
[1725544343400,7.73572252,133.88,133.85,7.4705]
[1725544343697,0.8714843,133.92,133.83,26.1515]
[1725544343883,7.73719702,133.9,133.8,18.6845]
[1725544344093,7.4705,133.86,133.8,18.6845]
[1725544344297,7.4699,133.87,133.81,7.4727]
[1725544344673,7.4699,133.87,133.8,18.6845]
[1725544344674,7.73719702,133.9,133.8,26.1582]
[1725544344872,7.73719702,133.9,133.77,18.6886]
[1725544345177,18.6746,133.88,133.78,7.4748]
[1725544345379,7.4716,133.84,133.79,7.4743]
[1725544345579,20.0,133.83,133.8,7.4738]
[1725544345794,20.0,133.83,133.79,7.4743]
[1725544345979,7.4724,133.83,133.77,18.6886]
[1725544346178,7.4715,133.85,133.77,18.6886]
[1725544346381,20.0,133.84,133.77,18.6886]
[1725544346799,7.4716,133.84,133.77,18.6886]
[1725544347095,7.4715,133.85,133.8,7.4735]
[1725544347806,7.73719702,133.9,133.81,26.1553]
[1725544347807,7.4704,133.87,133.81,26.1553]
[1725544348101,7.73719702,133.9,133.81,18.6821]
[1725544348305,26.40909702,133.9,133.79,7.4743]
[1725544348599,7.73719702,133.9,133.78,18.687]
[1725544349099,7.4698,133.88,133.8,18.6836]
[1725544349475,7.4689,133.89,133.83,7.4716]
[1725544349678,7.73719702,133.9,133.85,7.4709]
[1725544349883,0.8714843,133.92,133.86,1.49357811]
[1725544350085,0.8714843,133.92,133.88,7.4692]
[1725544350381,0.8714843,133.92,133.86,26.145]
[1725544350588,0.8714843,133.92,133.87,7.4697]
[1725544350785,0.8714843,133.92,133.89,18.6715]
[1725544350988,0.8714843,133.92,133.9,1.49313979]
[1725544351190,0.8714843,133.92,133.91,7.4677]
[1725544351390,0.8714843,133.92,133.91,8.96084398]
[1725544351583,0.8714843,133.92,133.91,7.4677]
[1725544351797,0.8714843,133.92,133.9,7.4681]
[1725544352295,0.8714843,133.92,133.91,8.96080013]
[1725544352677,0.8714843,133.92,133.91,7.4677]
[1725544352878,0.8714843,133.92,133.87,7.4698]
[1725544352879,8.3388843,133.92,133.87,7.4698]
[1725544353375,0.8714843,133.92,133.88,8.96238489]
[1725544353683,0.8714843,133.92,133.88,1.49338489]
[1725544354003,0.8714843,133.92,133.89,18.6711]
[1725544354401,0.8714843,133.92,133.89,26.1394]
[1725544354613,0.8714843,133.92,133.89,18.6711]
[1725544354810,0.8714843,133.92,133.89,26.1393]
[1725544355493,0.8714843,133.92,133.86,34.8205]
[1725544355681,0.8714843,133.92,133.88,7.469]
[1725544356202,0.8714843,133.92,133.86,18.676]
[1725544356404,7.4688,133.89,133.85,7.471]
[1725544356582,0.8714843,133.92,133.84,6.3033]
[1725544356785,0.8714843,133.92,133.85,18.6767]
[1725544356985,0.8714843,133.92,133.86,1.49336871]